[Event "CZE-ch Youth G10-G12-G14 2022"]
[Site "Luhacovice"]
[Date "2022.03.15"]
[Round "5.43"]
[White "Urvalkova Ema"]
[Black "Svrchokrylova, Ludmila"]
[Result "0-1"]
[ECO "C55"]
[WhiteElo "1000"]
[BlackElo "1024"]
[Annotator "NA"]
[PlyCount "72"]
[EventDate "2022.03.12"]
[EventType "swiss"]
[EventCountry "CZE"]
[SourceTitle "playchess.com"]
[Source "ChessBase"]
[SourceQuality "1"]
[TimeControl "40/5400+30:1800+30"]

1. e4 {[%emt 0:00:10]} e5 {[%emt 0:00:44]} 2. Nf3 {[%emt 0:00:08]} Nf6 {[%emt 0:00:17]} 3. Nc3 {[%emt 0:00:31]} Bb4 {[%emt 0:02:04]} 4. Bc4 {[%emt 0:01:02]} Nc6 {[%emt 0:09:45]} 5. O-O {[%emt 0:01:37]} d6 {[%emt 0:04:19]} 6. a3 {[%emt 0:01:38]} Bc5 {[%emt 0:03:02]} 7. Na4 {[%emt 0:00:56]} Bg4 {[%emt 0:02:18]} 8. Nxc5 {[%emt 0:00:51]} dxc5 {[%emt 0:00:30]} 9. d3 {[%emt 0:00:45]} Qd7 {[%emt 0:02:59]} 10. h3 {[%emt 0:01:54]} Bh5 {[%emt 0:03:40]} 11. Bg5 {[%emt 0:01:55]} O-O-O {[%emt 0:02:58]} 12. Bb5 {[%emt 0:01:57]} h6 {[%emt 0:01:47]} 13. Bh4 {[%emt 0:00:59]} g5 {[%emt 0:00:32]} 14. Bg3 {[%emt 0:00:34]} g4 {[%emt 0:00:26]} 15. Bxc6 {[%emt 0:00:47]} Qxc6 {[%emt 0:00:20]} 16. Nxe5 {[%emt 0:00:27]} Qe6 {[%emt 0:00:37]} 17. b4 {[%emt 0:05:24]} gxh3 {[%emt 0:00:59]} 18. Qc1 {[%emt 0:01:10]} hxg2 {[%emt 0:00:22]} 19. Kxg2 {[%emt 0:00:22]} Rdg8 {[%emt 0:00:39]} 20. Qe3 {[%emt 0:01:28]} Qxe5 {[%emt 0:01:09]} 21. bxc5 {[%emt 0:01:01]} Qg5 {[%emt 0:05:49]} 22. Qxg5 {[%emt 0:02:18]} Rxg5 {[%emt 0:02:21]} 23. Rfe1 {[%emt 0:00:35]} Rxc5 {[%emt 0:03:33]} 24. e5 {[%emt 0:00:49]} Nd7 {[%emt 0:01:37]} 25. e6 {[%emt 0:01:08]} fxe6 {[%emt 0:01:16]} 26. Rxe6 {[%emt 0:00:38]} Rxc2 {[%emt 0:03:56]} 27. Rae1 {[%emt 0:02:01]} b6 {[%emt 0:05:47]} 28. d4 {[%emt 0:02:43]} Rd2 {[%emt 0:04:06]} 29. R1e4 {[%emt 0:03:11]} Rd3 {[%emt 0:03:35]} 30. Rc6 {[%emt 0:02:39]} Bf3+ {[%emt 0:00:32]} 31. Kh3 {[%emt 0:01:01]} Bxe4 {[%emt 0:00:28]} 32. Rxc7+ {[%emt 0:00:29]} Kd8 {[%emt 0:00:37]} 33. Rxa7 {[%emt 0:00:33]} h5 {[%emt 0:03:58]} 34. Ra8+ {[%emt 0:00:16]} Bxa8 {[%emt 0:00:16]} 35. Kh4 {[%emt 0:00:14]} Rxd4+ {[%emt 0:00:16]} 36. Kh3 {[%emt 0:00:39]} h4 {[%emt 0:00:38]} 0-1

[Event "CZE-ch Youth G10-G12-G14 2022"]
[Site "Luhacovice"]
[Date "2022.03.16"]
[Round "6.1"]
[White "Janouskova, Eliska"]
[Black "Kusova, Nikola"]
[Result "0-1"]
[ECO "C42"]
[WhiteElo "1167"]
[BlackElo "1227"]
[Annotator "NA"]
[PlyCount "120"]
[EventDate "2022.03.12"]
[EventType "swiss"]
[EventCountry "CZE"]
[SourceTitle "playchess.com"]
[Source "ChessBase"]
[SourceQuality "1"]
[TimeControl "40/5400+30:1800+30"]

1. e4 {[%emt 0:00:07]} e5 {[%emt 0:00:12]} 2. Nf3 {[%emt 0:00:24]} Nf6 {[%emt 0:00:10]} 3. Nc3 {[%emt 0:00:31]} Bb4 {[%emt 0:00:39]} 4. Nxe5 {[%emt 0:01:08]} O-O {[%emt 0:00:13]} 5. Nf3 {[%emt 0:01:24]} Bxc3 {[%emt 0:00:57]} 6. bxc3 {[%emt 0:03:02]} Nxe4 {[%emt 0:00:49]} 7. Be2 {[%emt 0:01:42]} d6 {[%emt 0:02:02]} 8. O-O {[%emt 0:02:04]} Nc6 {[%emt 0:01:29]} 9. Bb2 {[%emt 0:05:33]} Re8 {[%emt 0:04:24]} 10. d3 {[%emt 0:03:05]} Nf6 {[%emt 0:01:41]} 11. c4 {[%emt 0:01:43]} Bg4 {[%emt 0:02:28]} 12. h3 {[%emt 0:03:05]} Bh5 {[%emt 0:00:24]} 13. Re1 {[%emt 0:01:42]} Qe7 {[%emt 0:02:36]} 14. Qd2 {[%emt 0:03:16]} Nd7 {[%emt 0:02:35]} 15. Bd1 {[%emt 0:01:35]} Qd8 {[%emt 0:01:49]} 16. Rxe8+ {[%emt 0:01:52]} Qxe8 {[%emt 0:00:27]} 17. Qc3 {[%emt 0:03:47]} Nf6 {[%emt 0:01:22]} 18. Ng5 {[%emt 0:06:39]} Bxd1 {[%emt 0:03:15]} 19. Rxd1 {[%emt 0:00:15]} Qe5 {[%emt 0:03:17]} 20. Qxe5 {[%emt 0:01:21]} Nxe5 {[%emt 0:00:53]} 21. Re1 {[%emt 0:02:08]} Re8 {[%emt 0:00:27]} 22. Ne4 {[%emt 0:01:15]} Nxe4 {[%emt 0:02:05]} 23. Rxe4 {[%emt 0:00:18]} Kf8 {[%emt 0:01:05]} 24. c5 {[%emt 0:04:57]} Nd7 {[%emt 0:02:57]} 25. cxd6 {[%emt 0:01:38]} Rxe4 {[%emt 0:00:39]} 26. dxe4 {[%emt 0:00:10]} cxd6 {[%emt 0:00:22]} 27. Ba3 {[%emt 0:00:34]} Ke7 {[%emt 0:00:40]} 28. f4 {[%emt 0:01:30]} Ke6 {[%emt 0:01:33]} 29. Kf2 {[%emt 0:02:29]} d5 {[%emt 0:01:30]} 30. exd5+ {[%emt 0:01:21]} Kxd5 {[%emt 0:00:13]} 31. Bb2 {[%emt 0:01:16]} f6 {[%emt 0:00:54]} 32. g3 {[%emt 0:01:26]} Ke4 {[%emt 0:01:55]} 33. Ke2 {[%emt 0:01:31]} Nb6 {[%emt 0:01:17]} 34. c3 {[%emt 0:02:20]} Nc4 {[%emt 0:02:18]} 35. Bc1 {[%emt 0:00:59]} f5 {[%emt 0:01:22]} 36. g4 {[%emt 0:01:33]} g6 {[%emt 0:03:02]} 37. gxf5 {[%emt 0:02:54]} gxf5 {[%emt 0:00:14]} 38. h4 {[%emt 0:01:22]} h5 {[%emt 0:00:54]} 39. a3 {[%emt 0:01:49]} a6 {[%emt 0:00:21]} 40. a4 {[%emt 0:00:23]} a5 {[%emt 0:00:07]} 41. Kd1 {[%emt 0:31:18]} Kd3 {[%emt 0:30:55]} 42. Ke1 {[%emt 0:00:18]} Kc2 {[%emt 0:00:11]} 43. Kf1 {[%emt 0:01:04]} Kxc1 {[%emt 0:00:13]} 44. Ke1 {[%emt 0:00:18]} Kc2 {[%emt 0:00:47]} 45. Ke2 {[%emt 0:00:14]} Kxc3 {[%emt 0:00:11]} 46. Kd1 {[%emt 0:00:18]} Kb2 {[%emt 0:00:14]} 47. Ke2 {[%emt 0:00:12]} b5 {[%emt 0:00:50]} 48. axb5 {[%emt 0:01:14]} a4 {[%emt 0:00:11]} 49. Kd3 {[%emt 0:00:14]} Kb3 {[%emt 0:00:39]} 50. b6 {[%emt 0:00:28]} Nxb6 {[%emt 0:00:13]} 51. Kd2 {[%emt 0:00:18]} Kb2 {[%emt 0:00:25]} 52. Kd3 {[%emt 0:00:25]} a3 {[%emt 0:00:14]} 53. Kd2 {[%emt 0:00:10]} a2 {[%emt 0:00:08]} 54. Ke1 {[%emt 0:00:33]} a1=Q+ {[%emt 0:00:29]} 55. Kd2 {[%emt 0:00:11]} Qa3 {[%emt 0:00:21]} 56. Kd1 {[%emt 0:00:17]} Qd3+ {[%emt 0:01:33]} 57. Ke1 {[%emt 0:00:13]} Qc2 {[%emt 0:00:17]} 58. Kf1 {[%emt 0:00:17]} Qd2 {[%emt 0:00:26]} 59. Kg1 {[%emt 0:00:16]} Qe2 {[%emt 0:00:22]} 60. Kh1 {[%emt 0:00:14]} Nd5 {[%emt 0:00:20]} 0-1

[Event "CZE-ch Youth G10-G12-G14 2022"]
[Site "Luhacovice"]
[Date "2022.03.16"]
[Round "6.2"]
[White "Lackova, Lucie"]
[Black "Vancakova, Veronika"]
[Result "1-0"]
[ECO "C42"]
[WhiteElo "1142"]
[BlackElo "1300"]
[Annotator "NA"]
[PlyCount "101"]
[EventDate "2022.03.12"]
[EventType "swiss"]
[EventCountry "CZE"]
[SourceTitle "playchess.com"]
[Source "ChessBase"]
[SourceQuality "1"]
[TimeControl "40/5400+30:1800+30"]

1. e4 {[%emt 0:00:08]} e5 {[%emt 0:00:03]} 2. Nf3 {[%emt 0:00:16]} Nf6 {[%emt 0:00:06]} 3. Nxe5 {[%emt 0:00:09]} d6 {[%emt 0:00:05]} 4. Nf3 {[%emt 0:00:08]} Nxe4 {[%emt 0:00:07]} 5. Nc3 {[%emt 0:00:08]} Nxc3 {[%emt 0:00:05]} 6. bxc3 {[%emt 0:00:06]} Be7 {[%emt 0:01:35]} 7. d4 {[%emt 0:01:45]} d5 {[%emt 0:00:37]} 8. Bd3 {[%emt 0:01:56]} Be6 {[%emt 0:01:23]} 9. O-O {[%emt 0:00:52]} Nd7 {[%emt 0:04:02]} 10. Rb1 {[%emt 0:01:47]} Nb6 {[%emt 0:04:15]} 11. Ne5 {[%emt 0:03:19]} c6 {[%emt 0:15:43]} 12. f4 {[%emt 0:00:56]} h5 {[%emt 0:28:51]} 13. f5 {[%emt 0:01:27]} Bc8 {[%emt 0:00:52]} 14. h3 {[%emt 0:00:56]} Nd7 {[%emt 0:02:21]} 15. Qe2 {[%emt 0:02:56]} Nf6 {[%emt 0:03:39]} 16. Bg5 {[%emt 0:03:50]} Kf8 {[%emt 0:06:42]} 17. Qd1 {[%emt 0:05:14]} Ng8 {[%emt 0:05:14]} 18. Bf4 {[%emt 0:03:53]} Bd6 {[%emt 0:11:51]} 19. c4 {[%emt 0:00:42]} Nf6 {[%emt 0:02:21]} 20. Bg5 {[%emt 0:00:55]} Be7 {[%emt 0:01:11]} 21. Qd2 {[%emt 0:02:56]} Kg8 {[%emt 0:01:25]} 22. Rbe1 {[%emt 0:00:25]} Kf8 {[%emt 0:04:28]} 23. Qe2 {[%emt 0:02:32]} Ng8 {[%emt 0:01:29]} 24. Bf4 {[%emt 0:09:16]} Bb4 {[%emt 0:00:41]} 25. Rd1 {[%emt 0:07:21]} Be7 {[%emt 0:00:42]} 26. cxd5 {[%emt 0:00:55]} cxd5 {[%emt 0:00:41]} 27. c4 {[%emt 0:00:30]} Nf6 {[%emt 0:02:06]} 28. cxd5 {[%emt 0:02:15]} Nxd5 {[%emt 0:00:16]} 29. Bc4 {[%emt 0:00:56]} b6 {[%emt 0:00:40]} 30. Qe4 {[%emt 0:01:44]} Bb7 {[%emt 0:00:14]} 31. Qe1 {[%emt 0:01:19]} Rc8 {[%emt 0:00:49]} 32. Bb3 {[%emt 0:02:10]} Bf6 {[%emt 0:00:41]} 33. Rd3 {[%emt 0:02:55]} Ba6 {[%emt 0:00:32]} 34. Qd1 {[%emt 0:03:38]} Bxd3 {[%emt 0:00:36]} 35. Nxd3 {[%emt 0:01:28]} Bxd4+ {[%emt 0:00:35]} 36. Kh1 {[%emt 0:00:14]} Nxf4 {[%emt 0:00:25]} 37. Nxf4 {[%emt 0:01:19]} Be5 {[%emt 0:00:35]} 38. Ng6+ {[%emt 0:01:39]} fxg6 {[%emt 0:00:29]} 39. fxg6+ {[%emt 0:00:28]} Bf6 {[%emt 0:00:09]} 40. Qe2 {[%emt 0:00:52]} Qe7 {[%emt 0:00:35]} 41. Qd3 {[%emt 0:30:57]} Rd8 {[%emt 0:30:34]} 42. Qc4 {[%emt 0:00:24]} Re8 {[%emt 0:00:54]} 43. Rd1 {[%emt 0:01:26]} h4 {[%emt 0:00:31]} 44. Kh2 {[%emt 0:00:46]} Qe5+ {[%emt 0:00:39]} 45. Kh1 {[%emt 0:00:20]} Qe7 {[%emt 0:00:05]} 46. Ba4 {[%emt 0:01:51]} Qe6 {[%emt 0:00:48]} 47. Qb4+ {[%emt 0:01:07]} Qe7 {[%emt 0:00:21]} 48. Qc4 {[%emt 0:02:04]} Qe6 {[%emt 0:00:32]} 49. Qb4+ {[%emt 0:02:03]} Qe7 {[%emt 0:00:12]} 50. Re1 {[%emt 0:02:41]} Qxb4 {[%emt 0:01:43]} 51. Rxe8# {[%emt 0:26:06]} 1-0

[Event "CZE-ch Youth G10-G12-G14 2022"]
[Site "Luhacovice"]
[Date "2022.03.16"]
[Round "6.3"]
[White "Romanko Diana"]
[Black "Stepankova Linda"]
[Result "1/2-1/2"]
[ECO "B12"]
[WhiteElo "1000"]
[BlackElo "1000"]
[Annotator "NA"]
[PlyCount "71"]
[EventDate "2022.03.12"]
[EventType "swiss"]
[EventCountry "CZE"]
[SourceTitle "playchess.com"]
[Source "ChessBase"]
[SourceQuality "1"]
[TimeControl "40/5400+30:1800+30"]

1. e4 {[%emt 0:00:07]} c6 {[%emt 0:00:01]} 2. d4 {[%emt 0:00:13]} d5 {[%emt 0:00:01]} 3. e5 {[%emt 0:00:17]} Bf5 {[%emt 0:00:08]} 4. Nf3 {[%emt 0:01:06]} e6 {[%emt 0:00:39]} 5. Bd2 {[%emt 0:02:02]} c5 {[%emt 0:06:37]} 6. Be2 {[%emt 0:01:12]} a6 {[%emt 0:04:13]} 7. c3 {[%emt 0:01:53]} c4 {[%emt 0:00:30]} 8. O-O {[%emt 0:01:06]} Ne7 {[%emt 0:01:00]} 9. b3 {[%emt 0:01:25]} b5 {[%emt 0:01:05]} 10. a4 {[%emt 0:01:31]} Nbc6 {[%emt 0:00:30]} 11. Na3 {[%emt 0:03:26]} Ng6 {[%emt 0:06:34]} 12. axb5 {[%emt 0:01:23]} Bxa3 {[%emt 0:09:51]} 13. bxc6 {[%emt 0:00:30]} Be7 {[%emt 0:01:10]} 14. bxc4 {[%emt 0:00:30]} O-O {[%emt 0:00:34]} 15. cxd5 {[%emt 0:01:37]} Qxd5 {[%emt 0:07:20]} 16. Rxa6 {[%emt 0:03:20]} Rxa6 {[%emt 0:01:38]} 17. Bxa6 {[%emt 0:00:27]} Qxc6 {[%emt 0:02:11]} 18. Be2 {[%emt 0:01:39]} f6 {[%emt 0:03:50]} 19. Qb3 {[%emt 0:05:37]} fxe5 {[%emt 0:04:23]} 20. Nxe5 {[%emt 0:02:22]} Nxe5 {[%emt 0:02:06]} 21. dxe5 {[%emt 0:00:23]} Qe4 {[%emt 0:03:46]} 22. Bf3 {[%emt 0:03:17]} Qxe5 {[%emt 0:02:48]} 23. Re1 {[%emt 0:06:47]} Qd6 {[%emt 0:02:50]} 24. Rd1 {[%emt 0:03:57]} Qa3 {[%emt 0:08:32]} 25. Qxa3 {[%emt 0:02:36]} Bxa3 {[%emt 0:00:04]} 26. Bc1 {[%emt 0:01:53]} Bxc1 {[%emt 0:01:57]} 27. Rxc1 {[%emt 0:00:07]} Bh3 {[%emt 0:03:47]} 28. c4 {[%emt 0:01:30]} Bf5 {[%emt 0:06:42]} 29. g4 {[%emt 0:01:19]} Bd3 {[%emt 0:01:14]} 30. Bb7 {[%emt 0:01:22]} Rb8 {[%emt 0:01:08]} 31. Ba6 {[%emt 0:00:43]} Rb6 {[%emt 0:01:29]} 32. Bc8 {[%emt 0:02:06]} Rc6 {[%emt 0:00:53]} 33. Bd7 {[%emt 0:00:38]} Rd6 {[%emt 0:02:07]} 34. Bc8 {[%emt 0:02:26]} Rc6 {[%emt 0:00:28]} 35. Bd7 {[%emt 0:00:38]} Rd6 {[%emt 0:00:45]} 36. Bc8 {[%emt 0:01:57]} 1/2-1/2

[Event "CZE-ch Youth G10-G12-G14 2022"]
[Site "Luhacovice"]
[Date "2022.03.16"]
[Round "6.4"]
[White "Lickova, Anna"]
[Black "Silhankova Simona"]
[Result "0-1"]
[ECO "C50"]
[WhiteElo "1016"]
[BlackElo "1000"]
[Annotator "NA"]
[PlyCount "32"]
[EventDate "2022.03.12"]
[EventType "swiss"]
[EventCountry "CZE"]
[SourceTitle "playchess.com"]
[Source "ChessBase"]
[SourceQuality "1"]
[TimeControl "40/5400+30:1800+30"]

1. e4 {[%emt 0:00:03]} e5 {[%emt 0:00:11]} 2. Nf3 {[%emt 0:00:14]} Nc6 {[%emt 0:00:24]} 3. Bc4 {[%emt 0:00:21]} Nf6 {[%emt 0:00:35]} 4. d3 {[%emt 0:00:17]} Bc5 {[%emt 0:00:28]} 5. Nc3 {[%emt 0:00:38]} d6 {[%emt 0:00:17]} 6. Qe2 {[%emt 0:01:10]} Be6 {[%emt 0:00:48]} 7. Bxe6 {[%emt 0:00:20]} fxe6 {[%emt 0:00:12]} 8. Be3 {[%emt 0:00:36]} Bb6 {[%emt 0:01:24]} 9. O-O {[%emt 0:04:51]} Ng4 {[%emt 0:00:46]} 10. Bxb6 {[%emt 0:02:07]} axb6 {[%emt 0:00:20]} 11. h3 {[%emt 0:01:39]} h5 {[%emt 0:00:47]} 12. hxg4 {[%emt 0:16:58]} hxg4 {[%emt 0:00:35]} 13. Rfc1 {[%emt 0:08:55]} gxf3 {[%emt 0:01:22]} 14. Qxf3 {[%emt 0:01:03]} Nd4 {[%emt 0:00:44]} 15. Qg4 {[%emt 0:01:53]} Qe7 {[%emt 0:02:39]} 16. Kf1 {[%emt 0:01:28]} Rh1# {[%emt 0:00:52]} 0-1

[Event "CZE-ch Youth G10-G12-G14 2022"]
[Site "Luhacovice"]
[Date "2022.03.16"]
[Round "6.5"]
[White "Vanickova Natalie"]
[Black "Hujova Tess"]
[Result "1-0"]
[ECO "B15"]
[WhiteElo "1000"]
[BlackElo "1000"]
[Annotator "NA"]
[PlyCount "69"]
[EventDate "2022.03.12"]
[EventType "swiss"]
[EventCountry "CZE"]
[SourceTitle "playchess.com"]
[Source "ChessBase"]
[SourceQuality "1"]
[TimeControl "40/5400+30:1800+30"]

1. e4 {[%emt 0:00:03]} c6 {[%emt 0:00:20]} 2. d4 {[%emt 0:00:55]} d5 {[%emt 0:00:20]} 3. f3 {[%emt 0:02:14]} g6 {[%emt 0:00:42]} 4. Nc3 {[%emt 0:03:43]} Bg7 {[%emt 0:02:12]} 5. Be3 {[%emt 0:01:52]} e6 {[%emt 0:01:11]} 6. Qd2 {[%emt 0:02:07]} Ne7 {[%emt 0:02:51]} 7. O-O-O {[%emt 0:03:15]} O-O {[%emt 0:04:58]} 8. Bd3 {[%emt 0:04:50]} f5 {[%emt 0:03:40]} 9. e5 {[%emt 0:02:25]} Qc7 {[%emt 0:04:43]} 10. Bh6 {[%emt 0:05:31]} a6 {[%emt 0:03:51]} 11. g4 {[%emt 0:05:07]} c5 {[%emt 0:06:17]} 12. Bxg7 {[%emt 0:02:39]} Kxg7 {[%emt 0:00:41]} 13. gxf5 {[%emt 0:05:03]} cxd4 {[%emt 0:04:03]} 14. f6+ {[%emt 0:01:33]} Kf7 {[%emt 0:02:50]} 15. fxe7 {[%emt 0:00:42]} Kxe7 {[%emt 0:00:35]} 16. Qg5+ {[%emt 0:03:10]} Ke8 {[%emt 0:00:45]} 17. Nce2 {[%emt 0:04:20]} Qa5 {[%emt 0:01:51]} 18. a3 {[%emt 0:03:26]} Nc6 {[%emt 0:01:02]} 19. Bxg6+ {[%emt 0:04:30]} hxg6 {[%emt 0:00:45]} 20. Qxg6+ {[%emt 0:00:28]} Rf7 {[%emt 0:00:46]} 21. Nh3 {[%emt 0:01:07]} Nxe5 {[%emt 0:01:58]} 22. Qg8+ {[%emt 0:02:00]} Rf8 {[%emt 0:02:51]} 23. Qg5 {[%emt 0:01:43]} Nxf3 {[%emt 0:02:36]} 24. Qh5+ {[%emt 0:01:02]} Ke7 {[%emt 0:01:11]} 25. Nhf4 {[%emt 0:02:16]} d3 {[%emt 0:08:41]} 26. Ng6+ {[%emt 0:01:16]} Kd8 {[%emt 0:00:59]} 27. Nxf8 {[%emt 0:00:26]} dxe2 {[%emt 0:00:35]} 28. Qxf3 {[%emt 0:00:51]} exd1=Q+ {[%emt 0:00:48]} 29. Rxd1 {[%emt 0:00:39]} Qb6 {[%emt 0:01:40]} 30. Qf6+ {[%emt 0:02:58]} Ke8 {[%emt 0:01:58]} 31. Ng6 {[%emt 0:03:20]} Qd6 {[%emt 0:04:01]} 32. Qh8+ {[%emt 0:01:37]} Kf7 {[%emt 0:02:29]} 33. Ne5+ {[%emt 0:02:15]} Ke7 {[%emt 0:01:10]} 34. Rf1 {[%emt 0:01:15]} Qb6 {[%emt 0:02:23]} 35. Qf8# {[%emt 0:01:31]} 1-0

[Event "CZE-ch Youth G10-G12-G14 2022"]
[Site "Luhacovice"]
[Date "2022.03.16"]
[Round "6.6"]
[White "Melicharova Veronika"]
[Black "Jenikova Sabina"]
[Result "0-1"]
[ECO "C30"]
[WhiteElo "1000"]
[BlackElo "1076"]
[Annotator "NA"]
[PlyCount "106"]
[EventDate "2022.03.12"]
[EventType "swiss"]
[EventCountry "CZE"]
[SourceTitle "playchess.com"]
[Source "ChessBase"]
[SourceQuality "1"]
[TimeControl "40/5400+30:1800+30"]

1. e4 {[%emt 0:00:03]} e5 {[%emt 0:00:23]} 2. f4 {[%emt 0:00:13]} d6 {[%emt 0:00:24]} 3. Nf3 {[%emt 0:00:18]} Nc6 {[%emt 0:00:15]} 4. Bb5 {[%emt 0:01:12]} Bd7 {[%emt 0:00:27]} 5. Bxc6 {[%emt 0:00:54]} Bxc6 {[%emt 0:00:09]} 6. Nc3 {[%emt 0:00:36]} Nf6 {[%emt 0:00:06]} 7. d3 {[%emt 0:00:26]} g6 {[%emt 0:00:20]} 8. O-O {[%emt 0:00:44]} Bh6 {[%emt 0:00:43]} 9. fxe5 {[%emt 0:00:26]} Bxc1 {[%emt 0:00:25]} 10. Rxc1 {[%emt 0:00:15]} Ng4 {[%emt 0:00:45]} 11. Qe2 {[%emt 0:01:27]} Nxe5 {[%emt 0:01:06]} 12. Nxe5 {[%emt 0:00:31]} dxe5 {[%emt 0:00:25]} 13. Qf2 {[%emt 0:00:34]} O-O {[%emt 0:00:27]} 14. Rcd1 {[%emt 0:03:05]} Qe7 {[%emt 0:01:54]} 15. d4 {[%emt 0:02:12]} Qb4 {[%emt 0:00:34]} 16. Rb1 {[%emt 0:02:49]} exd4 {[%emt 0:00:58]} 17. a3 {[%emt 0:00:51]} Qc5 {[%emt 0:00:39]} 18. Rbd1 {[%emt 0:00:31]} Rad8 {[%emt 0:00:40]} 19. Ne2 {[%emt 0:01:15]} Qxc2 {[%emt 0:01:15]} 20. Nxd4 {[%emt 0:02:46]} Qxf2+ {[%emt 0:00:41]} 21. Rxf2 {[%emt 0:00:41]} Bxe4 {[%emt 0:00:25]} 22. Rfd2 {[%emt 0:02:24]} Rd7 {[%emt 0:00:42]} 23. Nb5 {[%emt 0:00:58]} Rxd2 {[%emt 0:01:29]} 24. Rxd2 {[%emt 0:00:13]} a6 {[%emt 0:00:33]} 25. Nxc7 {[%emt 0:00:33]} Rc8 {[%emt 0:00:51]} 26. Re2 {[%emt 0:00:32]} Bc6 {[%emt 0:00:40]} 27. Re7 {[%emt 0:00:39]} Kf8 {[%emt 0:00:21]} 28. Re3 {[%emt 0:04:01]} Rxc7 {[%emt 0:00:53]} 29. Rh3 {[%emt 0:00:40]} Kg7 {[%emt 0:00:18]} 30. g4 {[%emt 0:00:51]} Bd7 {[%emt 0:00:21]} 31. Rc3 {[%emt 0:00:29]} Rxc3 {[%emt 0:00:21]} 32. bxc3 {[%emt 0:00:14]} Bxg4 {[%emt 0:00:08]} 33. a4 {[%emt 0:00:14]} f5 {[%emt 0:00:15]} 34. Kg2 {[%emt 0:00:14]} Kf6 {[%emt 0:00:08]} 35. h3 {[%emt 0:00:20]} Bxh3+ {[%emt 0:00:42]} 36. Kxh3 {[%emt 0:00:36]} Kg5 {[%emt 0:00:30]} 37. Kg3 {[%emt 0:00:30]} h5 {[%emt 0:00:13]} 38. a5 {[%emt 0:00:11]} f4+ {[%emt 0:00:14]} 39. Kf3 {[%emt 0:00:17]} h4 {[%emt 0:00:29]} 40. Kg2 {[%emt 0:00:09]} Kg4 {[%emt 0:00:09]} 41. c4 {[%emt 0:30:27]} h3+ {[%emt 0:30:27]} 42. Kh2 {[%emt 0:00:14]} f3 {[%emt 0:00:20]} 43. Kg1 {[%emt 0:00:17]} Kg3 {[%emt 0:00:24]} 44. c5 {[%emt 0:00:13]} f2+ {[%emt 0:01:41]} 45. Kf1 {[%emt 0:00:30]} h2 {[%emt 0:00:30]} 46. Ke2 {[%emt 0:00:06]} h1=Q {[%emt 0:00:18]} 47. Kd3 {[%emt 0:00:14]} Qd5+ {[%emt 0:00:43]} 48. Ke3 {[%emt 0:00:41]} Qc4 {[%emt 0:00:23]} 49. Kd2 {[%emt 0:00:53]} Qb3 {[%emt 0:00:17]} 50. Ke2 {[%emt 0:00:21]} Kf4 {[%emt 0:00:08]} 51. Kxf2 {[%emt 0:00:09]} Qc2+ {[%emt 0:00:13]} 52. Kg1 {[%emt 0:00:25]} Kg3 {[%emt 0:00:13]} 53. Kf1 {[%emt 0:03:07]} Qf2# {[%emt 0:00:12]} 0-1

[Event "CZE-ch Youth G10-G12-G14 2022"]
[Site "Luhacovice"]
[Date "2022.03.16"]
[Round "6.7"]
[White "Rudova Jana"]
[Black "Koutna Simona"]
[Result "0-1"]
[ECO "B20"]
[WhiteElo "1000"]
[BlackElo "1000"]
[Annotator "NA"]
[PlyCount "54"]
[EventDate "2022.03.12"]
[EventType "swiss"]
[EventCountry "CZE"]
[SourceTitle "playchess.com"]
[Source "ChessBase"]
[SourceQuality "1"]
[TimeControl "40/5400+30:1800+30"]

1. e4 {[%emt 0:00:10]} c5 {[%emt 0:00:02]} 2. b3 {[%emt 0:00:25]} Nf6 {[%emt 0:00:48]} 3. e5 {[%emt 0:01:27]} Nd5 {[%emt 0:01:00]} 4. Bb2 {[%emt 0:02:29]} e6 {[%emt 0:00:10]} 5. Ne2 {[%emt 0:00:53]} Be7 {[%emt 0:01:42]} 6. g3 {[%emt 0:02:07]} O-O {[%emt 0:00:30]} 7. Bg2 {[%emt 0:00:30]} Nc6 {[%emt 0:00:38]} 8. O-O {[%emt 0:02:30]} d6 {[%emt 0:02:58]} 9. d4 {[%emt 0:01:44]} cxd4 {[%emt 0:01:10]} 10. Nxd4 {[%emt 0:03:41]} dxe5 {[%emt 0:00:30]} 11. Nxc6 {[%emt 0:00:30]} bxc6 {[%emt 0:00:30]} 12. Bxe5 {[%emt 0:00:30]} Ba6 {[%emt 0:01:31]} 13. Re1 {[%emt 0:01:04]} Nb4 {[%emt 0:03:03]} 14. a3 {[%emt 0:02:38]} Nd5 {[%emt 0:05:33]} 15. Qg4 {[%emt 0:02:35]} Bf6 {[%emt 0:01:38]} 16. Bxf6 {[%emt 0:00:46]} Qxf6 {[%emt 0:00:37]} 17. Be4 {[%emt 0:01:06]} Qxa1 {[%emt 0:10:04]} 18. Qh4 {[%emt 0:00:36]} g6 {[%emt 0:03:30]} 19. Qh6 {[%emt 0:08:01]} Nc3 {[%emt 0:00:37]} 20. Bxc6 {[%emt 0:01:59]} Rad8 {[%emt 0:00:30]} 21. Qc1 {[%emt 0:00:30]} Rd6 {[%emt 0:00:43]} 22. Bf3 {[%emt 0:00:48]} Nxb1 {[%emt 0:02:46]} 23. Qxb1 {[%emt 0:00:37]} Qxb1 {[%emt 0:00:31]} 24. Rxb1 {[%emt 0:00:30]} Rd2 {[%emt 0:00:29]} 25. Rd1 {[%emt 0:00:56]} Rxd1+ {[%emt 0:00:08]} 26. Bxd1 {[%emt 0:00:20]} Rd8 {[%emt 0:00:22]} 27. Be2 {[%emt 0:00:10]} Bxe2 {[%emt 0:00:23]} 0-1